fUST/lending_fUST_20250811
["ID","MTS","AMOUNT","RATE_DAILY","PERIOD"]
[378474309,1754879440897,-468.08827682,0.00019959,2]
[378474311,1754879440906,-460.0,0.00019959,2]
[378474313,1754879440916,-461.93018119,0.00019959,2]
[378474315,1754879440925,-486.75588056,0.00019959,2]
[378474317,1754879440934,-460.0,0.00019959,2]
[378474319,1754879440944,-466.99591349,0.00019959,2]
[378474321,1754879440953,-461.51631454,0.00019959,2]
[378474323,1754879440962,-460.0,0.00019959,2]
[378474325,1754879440971,-460.0,0.00019959,2]
[378474327,1754879440980,-460.0,0.00019959,2]
[378474329,1754879440989,-462.69140226,0.00019959,2]
[378474331,1754879440999,-460.0,0.00019959,2]
[378474333,1754879441008,-460.0,0.00019959,2]
[378474335,1754879441018,-460.0,0.00019959,2]
[378474337,1754879441027,-466.45757835,0.00019959,2]
[378474340,1754879441037,-235.6704472,0.00019959,2]
[378474342,1754879441046,-460.0,0.00019959,2]
[378474344,1754879441055,-460.0,0.00019959,2]
[378474346,1754879441065,-462.32734884,0.00019959,2]
[378474348,1754879441074,-207.94205898,0.00019959,2]
[378474349,1754879441084,-225.63013126,0.00019959,2]
[378474352,1754879441094,-210.75563528,0.00019959,2]
[378474353,1754879441103,-466.83698808,0.00019959,2]
[378474355,1754879441112,-460.0,0.00019959,2]
[378474357,1754879441121,-461.4455206,0.00019959,2]
[378474360,1754879441134,-460.0,0.00019959,2]
[378474361,1754879441143,-460.71,0.00019959,2]
[378474364,1754879441152,-463.4594419,0.00019959,2]
[378474365,1754879441162,-475.09415699,0.00019959,2]
[378474367,1754879441171,-460.0,0.00019959,2]
[378474369,1754879441180,-460.0,0.00019959,2]
[378474371,1754879441190,-460.0,0.00019959,2]
[378474373,1754879441199,-465.31262335,0.00019959,2]
[378474375,1754879441209,-460.0,0.00019959,2]
[378474377,1754879441218,-460.0,0.00019959,2]
[378474379,1754879441226,-463.82971745,0.00019959,2]
[378474381,1754879441235,-460.0,0.00019959,2]
[378474383,1754879441244,-462.18137086,0.00019959,2]
[378474385,1754879441253,-460.0,0.00019959,2]
[378474387,1754879441263,-460.0,0.00019959,2]
[378474389,1754879441271,-460.0,0.00019959,2]
[378474391,1754879441281,-464.0322305,0.00019959,2]
[378474393,1754879441290,-464.13123212,0.00019959,2]
[378474395,1754879441300,-461.51659585,0.00019959,2]
[378474397,1754879441309,-460.0,0.00019959,2]
[378474399,1754879441318,-469.10269132,0.00019959,2]
[378474401,1754879441327,-461.75813743,0.00019959,2]
[378474403,1754879441336,-460.0,0.00019959,2]
[378474405,1754879441346,-467.96802846,0.00019959,2]
[378474407,1754879441355,-464.11121644,0.00019959,2]
[378474409,1754879441364,-460.0,0.00019959,2]
[378474411,1754879441374,-460.0,0.00019959,2]
[378474413,1754879441384,-461.95195551,0.00019959,2]
[378474415,1754879441393,-460.0,0.00019959,2]
[378474417,1754879441402,-464.25511361,0.00019959,2]
[378474419,1754879441411,-464.50285907,0.00019959,2]
[378474421,1754879441421,-460.0,0.00019959,2]
[378474423,1754879441430,-468.20707452,0.00019959,2]
[378474425,1754879441439,-460.0,0.00019959,2]
[378474427,1754879441450,-460.0,0.00019959,2]
[378474429,1754879441459,-460.7668661,0.00019959,2]
[378474431,1754879441468,-465.02924626,0.00019959,2]
[378474433,1754879441477,-460.0,0.00019959,2]
[378474435,1754879441486,-460.0,0.00019959,2]
[378474437,1754879441495,-460.0,0.00019959,2]
[378474439,1754879441504,-550.26,0.00019959,2]
[378474441,1754879441513,-1129.20643753,0.00019959,2]
[378474443,1754879441524,-461.88714806,0.00019959,2]
[378474445,1754879441534,-460.0,0.00019959,2]
[378474447,1754879441543,-469.68856352,0.00019959,2]
[378474449,1754879441552,-460.0,0.00019959,2]
[378474450,1754879441562,-617.1,0.00019959,2]
[378474452,1754879441571,-460.0,0.00019959,2]
[378474454,1754879441581,-500.0,0.00019959,2]
[378474456,1754879441590,-500.0,0.00019959,2]
[378474458,1754879441601,-500.0,0.00019959,2]
[378474460,1754879441610,-463.76245966,0.00019959,2]
[378474462,1754879441619,-460.0,0.00019959,2]
[378474464,1754879441629,-464.54120031,0.00019959,2]
[378474466,1754879441640,-463.4585833,0.00019959,2]
[378474468,1754879441649,-460.0,0.00019959,2]
[378474470,1754879441658,-460.0,0.00019959,2]
[378474472,1754879441668,-464.36845169,0.00019959,2]
[378474473,1754879441677,-467.47291722,0.00019959,2]
[378474475,1754879441687,-465.45389701,0.00019959,2]
[378474477,1754879441696,-460.0,0.00019959,2]
[378474479,1754879441706,-463.47628509,0.00019959,2]
[378474481,1754879441715,-1301.66,0.00019959,2]
[378474483,1754879441725,-544.69823142,0.00019959,2]
[378474485,1754879441734,-1008.77,0.00019959,2]
[378474487,1754879441744,-466.98946816,0.00019959,2]
[378474489,1754879441753,-460.0,0.00019959,2]
[378474491,1754879441763,-462.22189593,0.00019959,2]
[378474493,1754879441771,-450.07338502,0.00019959,2]
[378474495,1754879441780,-912.71,0.00019959,2]
[378474497,1754879441790,-460.0,0.00019959,2]
[378474499,1754879441799,-460.0,0.00019959,2]
[378474501,1754879441808,-464.91228357,0.00019959,2]
[378474503,1754879441817,-468.86302036,0.00019959,2]
[378474505,1754879441826,-462.90653018,0.00019959,2]
[378474506,1754879441835,-460.0,0.00019959,2]
[378474508,1754879441844,-500.0,0.00019959,2]
[378474510,1754879441853,-467.72882347,0.00019959,2]
[378474512,1754879441862,-588.36544357,0.00019959,2]
[378474514,1754879441870,-462.5408879,0.00019959,2]
[378474516,1754879441879,-460.0,0.00019959,2]
[378474518,1754879441890,-462.22829044,0.00019959,2]
[378474520,1754879441899,-461.30557044,0.00019959,2]
[378474522,1754879441908,-461.8699257,0.00019959,2]
[378474523,1754879441918,-460.0,0.00019959,2]
[378474525,1754879441928,-222.15879501,0.00019959,2]
[378474527,1754879441937,-462.08711173,0.00019959,2]
[378474529,1754879441946,-460.0,0.00019959,2]
[378474531,1754879441955,-461.45850084,0.00019959,2]
[378474533,1754879441964,-461.99415858,0.00019959,2]
[378474535,1754879441976,-460.0,0.00019959,2]
[378474537,1754879441985,-460.0,0.00019959,2]
[378474539,1754879441994,-460.0,0.00019959,2]
[378474541,1754879442004,-461.98545855,0.00019959,2]
[378474543,1754879442013,-460.0,0.00019959,2]
[378474545,1754879442024,-463.80623036,0.00019959,2]
[378474547,1754879442034,-467.2393958,0.00019959,2]
[378474549,1754879442043,-460.0,0.00019959,2]
[378474551,1754879442053,-460.0,0.00019959,2]
[378474553,1754879442062,-460.0,0.00019959,2]
[378474555,1754879442072,-460.0,0.00019959,2]
[378474557,1754879442081,-460.0,0.00019959,2]
[378474559,1754879442090,-468.77524786,0.00019959,2]
[378474561,1754879442099,-460.0,0.00019959,2]
[378474563,1754879442109,-463.03426662,0.00019959,2]
[378474565,1754879442118,-461.28635099,0.00019959,2]
[378474567,1754879442127,-460.0,0.00019959,2]
[378474569,1754879442140,-460.0,0.0001996,2]
[378474571,1754879442151,-183.16516995,0.0001996,2]
[378474573,1754879442161,-460.0,0.0001996,2]
[378474574,1754879442170,-373.64418214,0.0001996,2]
[378474576,1754879442179,-460.0,0.0001996,2]
[378474579,1754879442189,-460.0,0.0001996,2]
[378474580,1754879442199,-460.0,0.0001996,2]
[378474583,1754879442209,-460.0,0.0001996,2]
[378474585,1754879442219,-461.27211757,0.0001996,2]
[378474588,1754879442228,-464.11223383,0.0001996,2]
[378474591,1754879442237,-460.0,0.0001996,2]
[378474594,1754879442246,-511.72542022,0.0001996,2]
[378474596,1754879442255,-460.0,0.0001996,2]
[378474600,1754879442265,-460.0,0.0001996,2]
[378474602,1754879442274,-460.0,0.0001996,2]
[378474604,1754879442284,-576.847751,0.0001996,2]
[378474606,1754879442294,-465.81389947,0.0001996,2]
[378474608,1754879442302,-228.04217954,0.0001996,2]
[378474610,1754879442311,-460.0,0.0001996,2]
[378474612,1754879442320,-460.0,0.0001996,2]
[378474614,1754879442329,-472.83102096,0.0001996,2]
[378474616,1754879442339,-460.0,0.0001996,2]
[378474618,1754879442348,-460.0,0.0001996,2]
[378474620,1754879442358,-460.0,0.0001996,2]
[378474622,1754879442368,-460.0,0.0001996,2]
[378474624,1754879442377,-467.27053347,0.0001996,2]
[378474626,1754879442389,-460.0,0.0001996,2]
[378474628,1754879442399,-460.0,0.0001996,2]
[378474630,1754879442408,-462.48604622,0.0001996,2]
[378474631,1754879442418,-464.89888573,0.0001996,2]
[378474633,1754879442428,-461.8099595,0.0001996,2]
[378474635,1754879442437,-461.22921877,0.0001996,2]
[378474637,1754879442447,-463.80845333,0.0001996,2]
[378474639,1754879442456,-460.0,0.0001996,2]
[378474641,1754879442466,-460.0,0.0001996,2]
[378474643,1754879442476,-460.0,0.0001996,2]
[378474645,1754879442485,-460.0,0.0001996,2]
[378474647,1754879442495,-463.21352527,0.0001996,2]
[378474649,1754879442504,-462.76447849,0.0001996,2]
[378474651,1754879442516,-469.17258309,0.0001996,2]
[378474653,1754879442536,-460.0,0.0001996,2]
[378474655,1754879442548,-460.0,0.0001996,2]
[378474657,1754879442558,-465.08246232,0.0001996,2]
[378474658,1754879442568,-460.0,0.0001996,2]
[378474660,1754879442578,-487.31,0.0001996,2]
[378474662,1754879442588,-460.0,0.0001996,2]
[378474664,1754879442598,-460.0,0.0001996,2]
[378474666,1754879442608,-460.0,0.0001996,2]
[378474668,1754879442618,-460.0,0.0001996,2]
[378474670,1754879442627,-460.0,0.0001996,2]
[378474672,1754879442639,-458.89231785,0.0001996,2]
[378474674,1754879442649,-460.0,0.0001996,2]
[378474676,1754879442659,-480.46260625,0.0001996,2]
[378474678,1754879442669,-465.00590653,0.0001996,2]
[378474680,1754879442678,-460.0,0.0001996,2]
[378474682,1754879442687,-460.0,0.0001996,2]
[378474684,1754879442696,-460.0,0.0001996,2]
[378474686,1754879442706,-460.0,0.0001996,2]
[378474688,1754879442715,-460.0,0.0001996,2]
[378474690,1754879442724,-460.0,0.0001996,2]
[378474692,1754879442734,-460.0,0.0001996,2]
[378474694,1754879442743,-460.0,0.0001996,2]
[378474695,1754879442752,-460.0,0.0001996,2]
[378474697,1754879442763,-463.37047231,0.0001996,2]
[378474699,1754879442772,-460.0,0.0001996,2]
[378474701,1754879442782,-480.51853295,0.0001996,2]
[378474703,1754879442791,-460.0,0.0001996,2]
[378474705,1754879442801,-546.44,0.0001996,2]
[378474707,1754879442810,-460.0,0.0001996,2]
[378474709,1754879442820,-460.0,0.0001996,2]
[378474711,1754879442829,-500.0,0.0001996,2]
[378474713,1754879442839,-460.0,0.0001996,2]
[378474715,1754879442849,-460.0,0.0001996,2]
[378474717,1754879442858,-460.0,0.0001996,2]
[378474719,1754879442868,-460.0,0.0001996,2]
[378474721,1754879442877,-454.2693159,0.0001996,2]
[378474723,1754879442889,-500.0,0.0001996,2]
[378474725,1754879442898,-460.0,0.0001996,2]
[378474726,1754879442907,-1068.33,0.0001996,2]
[378474728,1754879442920,-460.0,0.0001996,2]
[378474730,1754879442931,-460.0,0.0001996,2]
[378474732,1754879442941,-460.0,0.0001996,2]
[378474734,1754879442951,-460.0,0.0001996,2]
[378474736,1754879442960,-460.0,0.0001996,2]
[378474738,1754879442969,-460.0,0.0001996,2]
[378474740,1754879442979,-460.0,0.0001996,2]
[378474742,1754879442988,-1348.495,0.00019961,2]
[378474744,1754879442998,-460.0,0.00019961,2]
[378474746,1754879443011,-460.0,0.00019961,2]
[378474748,1754879443021,-463.56071694,0.00019961,2]
[378474750,1754879443031,-460.0,0.00019961,2]
[378474752,1754879443042,-465.89333034,0.00019961,2]
[378474754,1754879443052,-460.0,0.00019961,2]
[378474757,1754879443062,-1083.78,0.00019961,2]
[378474760,1754879443073,-460.0,0.00019961,2]
[378474763,1754879443083,-460.0,0.00019961,2]
[378474766,1754879443093,-1684.6,0.00019961,2]
[378474767,1754879443104,-460.0,0.00019961,2]
[378474770,1754879443114,-500.0,0.00019962,2]
[378474771,1754879443124,-500.0,0.00019962,2]
[378474773,1754879443138,-500.0,0.00019963,2]
[378474776,1754879443149,-60451.02612971,0.0001999,2]
[378474778,1754879443159,-2246.94553364,0.00019996,2]
[378474780,1754879443169,-500.0,0.00019996,2]
[378474781,1754879443177,-2246.94553364,0.00019996,2]
[378474783,1754879443187,-2246.94553364,0.00019996,2]
[378474785,1754879443196,-289.6952205,0.00019996,2]
[378474787,1754879443205,-2246.94553364,0.00019996,2]
[378474789,1754879443215,-2246.94553364,0.00019996,2]
[378474791,1754879443224,-2246.94553364,0.00019996,2]
[378474793,1754879443233,-2246.94553364,0.00019996,2]
[378474795,1754879443243,-2246.94553364,0.00019996,2]
[378474797,1754879443252,-2246.94553364,0.00019996,2]
[378474799,1754879443262,-2246.94553364,0.00019996,2]
[378474801,1754879443271,-2246.94553364,0.00019996,2]
[378474803,1754879443280,-2246.94553364,0.00019996,2]
[378474805,1754879443290,-2246.94553364,0.00019996,2]
[378474807,1754879443299,-2246.94553364,0.00019996,2]
[378474808,1754879443308,-2246.94553364,0.00019996,2]
[378474810,1754879443317,-2246.94553364,0.00019996,2]
[378474812,1754879443327,-2246.94553364,0.00019996,2]
[378474814,1754879443336,-2246.94553364,0.00019996,2]
[378474816,1754879443345,-2246.94553364,0.00019996,2]
[378474818,1754879443354,-2246.94553364,0.00019996,2]
[378474820,1754879443363,-2246.94553364,0.00019996,2]
[378474822,1754879443372,-160.0,0.0002,3]
[378474824,1754879443383,-1000.0,0.0002,6]
[378474826,1754879443392,-137174.22283296,0.0002,14]
[378474828,1754879443401,-728.47359829,0.00020108,2]
[378474830,1754879443410,-19306.24706298,0.00020131,3]
[378474832,1754879443419,-160.0,0.00020131,3]
[378474834,1754879443428,-461.69158338,0.00020131,3]
[378474836,1754879443438,-178.756018,0.00020187,2]
[378474838,1754879443447,-185.62042612,0.0002023,2]
[378474839,1754879443456,-460.0,0.0002023,2]
[378474841,1754879443466,-460.0,0.0002023,2]
[378474843,1754879443475,-460.0,0.0002023,2]
[378474845,1754879443485,-661.12,0.0002023,2]
[378474847,1754879443496,-460.0,0.0002023,2]
[378474849,1754879443506,-460.0,0.0002023,2]
[378474851,1754879443518,-346.97355587,0.0002023,2]
[378474853,1754879443527,-463.89803972,0.0002023,2]
[378474855,1754879443537,-460.0,0.0002023,2]
[378474857,1754879443546,-460.0,0.0002023,2]
[378474859,1754879443555,-460.0,0.0002023,2]
[378474861,1754879443566,-460.0,0.0002023,2]
[378474862,1754879443575,-460.0,0.0002023,2]
[378474863,1754879443584,-500.0,0.00020231,2]
[378474864,1754879443593,-460.0,0.00020231,2]
[378474865,1754879443603,-460.0,0.00020231,2]
[378474866,1754879443612,-464.91169421,0.00020231,2]
[378474867,1754879443621,-471.97460108,0.00020231,2]
[378474868,1754879443630,-460.0,0.00020231,2]
[378474869,1754879443641,-460.0,0.00020231,2]
[378474870,1754879443650,-460.0,0.00020231,2]
[378474871,1754879443659,-460.0,0.00020231,2]
[378474872,1754879443668,-460.0,0.00020231,2]
[378474873,1754879443677,-460.0,0.00020231,2]
[378474874,1754879443686,-460.0,0.00020231,2]
[378474875,1754879443695,-460.0,0.00020231,2]
[378474876,1754879443705,-462.74562488,0.00020231,2]
[378474877,1754879443714,-460.0,0.00020231,2]
[378474878,1754879443722,-460.0,0.00020231,2]
[378474879,1754879443732,-165.05133505,0.00020231,2]
[378474880,1754879443741,-460.0,0.00020231,2]
[378474881,1754879443750,-460.0,0.00020231,2]
[378474882,1754879443759,-460.0,0.00020231,2]
[378474883,1754879443768,-460.0,0.00020231,2]
[378474884,1754879443777,-460.0,0.00020231,2]
[378474885,1754879443786,-460.0,0.00020231,2]
[378474886,1754879443795,-460.0,0.00020231,2]
[378474887,1754879443804,-460.0,0.00020231,2]
[378474888,1754879443813,-463.2914921,0.00020231,2]
[378474889,1754879443822,-460.0,0.00020231,2]
[378474890,1754879443831,-480.4,0.00020231,2]
[378474891,1754879443840,-466.5715105,0.00020231,2]
[378474892,1754879443849,-464.8982935,0.00020231,2]
[378474893,1754879443858,-460.0,0.00020231,2]
[378474895,1754879443867,-460.0,0.00020231,2]
[378474897,1754879443877,-471.389391,0.00020231,2]
[378474899,1754879443888,-460.0,0.00020231,2]
[378474900,1754879443898,-460.0,0.00020231,2]
[378474902,1754879443908,-460.0,0.00020231,2]
[378474904,1754879443919,-592.13013929,0.00020231,2]
[378474906,1754879443929,-331.85249891,0.00020231,2]
[378474909,1754879443939,-461.94,0.00020231,2]
[378474911,1754879443948,-460.0,0.00020231,2]
[378474913,1754879443958,-460.0,0.00020231,2]
[378474915,1754879443967,-460.0,0.00020231,2]
[378474917,1754879443976,-756.38,0.00020231,2]
[378474919,1754879443985,-1399.25,0.00020231,2]
[378474921,1754879443994,-460.0,0.00020231,2]
[378474922,1754879444003,-248.43480591,0.00020231,2]
[378474924,1754879444012,-460.0,0.00020231,2]
[378474926,1754879444022,-460.0,0.00020231,2]
[378474929,1754879444031,-460.0,0.00020231,2]
[378474931,1754879444042,-460.0,0.00020231,2]
[378474933,1754879444051,-460.0,0.00020231,2]
[378474935,1754879444060,-460.0,0.00020231,2]
[378474936,1754879444069,-460.0,0.00020231,2]
[378474938,1754879444078,-460.0,0.00020231,2]
[378474940,1754879444088,-463.87527549,0.00020231,2]
[378474943,1754879444097,-460.0,0.00020231,2]
[378474944,1754879444106,-1560.09,0.00020231,2]
[378474946,1754879444116,-460.0,0.00020231,2]
[378474948,1754879444125,-460.0,0.00020231,2]
[378474950,1754879444135,-460.0,0.00020231,2]
[378474952,1754879444144,-460.0,0.00020231,2]
[378474954,1754879444154,-460.0,0.00020231,2]
[378474956,1754879444163,-552.23,0.00020231,2]
[378474958,1754879444172,-460.0,0.00020231,2]
[378474960,1754879444182,-460.0,0.00020231,2]
[378474962,1754879444191,-460.0,0.00020231,2]
[378474964,1754879444201,-460.0,0.00020231,2]
[378474966,1754879444210,-2297.75,0.00020231,2]
[378474968,1754879444220,-460.0,0.00020231,2]
[378474970,1754879444229,-460.0,0.00020231,2]
[378474972,1754879444239,-460.0,0.00020231,2]
[378474974,1754879444248,-460.0,0.00020231,2]
[378474976,1754879444258,-554.42071272,0.00020231,2]
[378474978,1754879444267,-469.69228478,0.00020231,2]
[378474981,1754879444277,-460.0,0.00020231,2]
[378474983,1754879444286,-460.0,0.00020231,2]
[378474984,1754879444295,-460.0,0.00020231,2]
[378474986,1754879444305,-460.0,0.00020231,2]
[378474988,1754879444314,-460.0,0.00020231,2]
[378474990,1754879444323,-460.0,0.00020231,2]
[378475014,1754879444540,-460.0,0.00020231,2]
[378475016,1754879444550,-219.0058754,0.00020231,2]
[378475018,1754879444559,-460.0,0.00020232,2]
[378475020,1754879444570,-468.06384894,0.00020232,2]
[378475022,1754879444579,-460.0,0.00020232,2]
[378475024,1754879444588,-479.61883561,0.00020232,2]
[378475026,1754879444598,-460.0,0.00020232,2]
[378475028,1754879444607,-460.0,0.00020232,2]
[378475030,1754879444616,-460.0,0.00020232,2]
[378475032,1754879444625,-460.0,0.00020232,2]
[378475034,1754879444634,-460.0,0.00020232,2]
[378475036,1754879444643,-460.0,0.00020232,2]
[378475038,1754879444652,-460.0,0.00020232,2]
[378475040,1754879444661,-460.0,0.00020232,2]
[378475042,1754879444670,-460.0,0.00020232,2]
[378475058,1754879444810,-460.0,0.00020232,2]
[378475060,1754879444819,-460.0,0.00020232,2]
[378475062,1754879444829,-568.91,0.00020232,2]
[378475064,1754879444838,-460.0,0.00020232,2]
[378475066,1754879444847,-460.0,0.00020232,2]
[378475068,1754879444856,-1306.56,0.00020232,2]
[378475070,1754879444866,-460.0,0.00020232,2]
[378475072,1754879444875,-460.0,0.00020232,2]
[378475074,1754879444885,-645.62,0.00020232,2]
[378475076,1754879444894,-460.0,0.00020232,2]
[378475078,1754879444903,-460.0,0.00020232,2]
[378475080,1754879444912,-460.0,0.00020232,2]
[378475082,1754879444921,-460.0,0.00020232,2]
[378475084,1754879444931,-460.0,0.00020232,2]
[378475086,1754879444941,-460.0,0.00020232,2]
[378475088,1754879444950,-460.0,0.00020232,2]
[378475090,1754879444959,-460.0,0.00020232,2]
[378475092,1754879444969,-1166.95,0.00020232,2]
[378475094,1754879444978,-460.0,0.00020232,2]
[378475096,1754879444987,-592.19958256,0.00020232,2]
[378475098,1754879444996,-460.0,0.00020232,2]
[378475100,1754879445005,-460.0,0.00020232,2]
[378475102,1754879445015,-460.0,0.00020232,2]
[378475104,1754879445024,-460.0,0.00020232,2]
[378475106,1754879445034,-460.0,0.00020232,2]
[378475108,1754879445043,-460.0,0.00020232,2]
[378475110,1754879445053,-460.0,0.00020232,2]
[378475112,1754879445062,-460.0,0.00020232,2]
[378475114,1754879445072,-460.0,0.00020232,2]
[378475116,1754879445081,-1333.39,0.00020232,2]
[378475118,1754879445091,-460.0,0.00020232,2]
[378475120,1754879445099,-460.0,0.00020233,2]
[378475122,1754879445108,-460.0,0.00020233,2]
[378475124,1754879445118,-460.0,0.00020233,2]
[378475126,1754879445127,-460.0,0.00020233,2]
[378475128,1754879445137,-460.0,0.00020233,2]
[378475130,1754879445146,-460.0,0.00020233,2]
[378475132,1754879445156,-471.35265631,0.00020233,2]
[378475134,1754879445165,-463.75473631,0.00020233,2]
[378475136,1754879445175,-460.0,0.00020233,2]
[378475138,1754879445184,-463.46197778,0.00020233,2]
[378475141,1754879445193,-466.93729992,0.00020233,2]
[378475145,1754879445204,-466.88180667,0.00020233,2]
[378475148,1754879445215,-460.0,0.00020233,2]
[378475150,1754879445224,-463.56054042,0.00020233,2]
[378475152,1754879445233,-564.72740159,0.00020233,2]
[378475155,1754879445242,-462.70464965,0.00020233,2]
[378475157,1754879445251,-465.14173603,0.00020233,2]
[378475159,1754879445260,-460.0,0.00020233,2]
[378475161,1754879445269,-460.0,0.00020233,2]
[378475163,1754879445278,-460.0,0.00020233,2]
[378475165,1754879445287,-460.0,0.00020233,2]
[378475167,1754879445296,-460.0,0.00020233,2]
[378475168,1754879445305,-460.0,0.00020233,2]
[378475170,1754879445314,-460.71,0.00020233,2]
[378475172,1754879445323,-285.15203311,0.00020233,2]
[378475174,1754879445332,-460.0,0.00020233,2]
[378475176,1754879445342,-460.0,0.00020233,2]
[378475178,1754879445352,-464.99530703,0.00020233,2]
[378475181,1754879445362,-460.0,0.00020233,2]
[378475183,1754879445371,-418.42129904,0.00020233,2]
[378475184,1754879445380,-460.0,0.00020233,2]
[378475186,1754879445391,-539.32,0.00020233,2]
[378475189,1754879445401,-460.0,0.00020233,2]
[378475191,1754879445411,-460.0,0.00020233,2]
[378475193,1754879445421,-507.99936117,0.00020233,2]
[378475195,1754879445430,-460.0,0.00020233,2]
[378475197,1754879445439,-460.0,0.00020233,2]
[378475199,1754879445449,-474.77339961,0.00020233,2]
[378475201,1754879445459,-550.26,0.00020233,2]
[378475203,1754879445468,-460.0,0.00020233,2]
[378475205,1754879445479,-617.1,0.00020233,2]
[378475207,1754879445489,-460.0,0.00020233,2]
[378475209,1754879445499,-460.0,0.00020233,2]
[378475211,1754879445510,-465.56117883,0.00020233,2]
[378475213,1754879445525,-466.28649829,0.00020233,2]
[378475215,1754879445536,-460.0,0.00020233,2]
[378475217,1754879445546,-1301.66,0.00020233,2]
[378475219,1754879445555,-1008.77,0.00020233,2]
[378475221,1754879445566,-460.0,0.00020233,2]
[378475223,1754879445577,-912.71,0.00020233,2]
[378475224,1754879445587,-541.82723983,0.00020233,2]
[378475227,1754879445599,-460.0,0.00020233,2]
[378475229,1754879445609,-464.60761516,0.00020233,2]
[378475231,1754879445619,-460.0,0.00020233,2]
[378475232,1754879445628,-460.0,0.00020233,2]
[378475235,1754879445639,-460.0,0.00020233,2]
[378475237,1754879445649,-460.0,0.00020233,2]
[378475239,1754879445658,-460.0,0.00020233,2]
[378475241,1754879445668,-460.0,0.00020233,2]
[378475243,1754879445679,-460.0,0.00020233,2]
[378475244,1754879445690,-460.0,0.00020233,2]
[378475246,1754879445699,-258.82,0.00020233,2]
[378475248,1754879445709,-460.0,0.00020233,2]
[378475251,1754879445719,-460.0,0.00020233,2]
[378475253,1754879445728,-460.0,0.00020234,2]
[378475254,1754879445739,-197.02913577,0.00020234,2]
[378475256,1754879445748,-460.0,0.00020234,2]
[378475259,1754879445758,-460.0,0.00020234,2]
[378475260,1754879445767,-308.83896999,0.00020234,2]
[378475262,1754879445775,-460.0,0.00020234,2]
[378475264,1754879445786,-460.0,0.00020234,2]
[378475266,1754879445795,-460.0,0.00020234,2]
[378475269,1754879445804,-460.0,0.00020234,2]
[378475270,1754879445813,-460.0,0.00020234,2]
[378475272,1754879445823,-472.60913493,0.00020234,2]
[378475274,1754879445832,-460.0,0.00020234,2]
[378475277,1754879445841,-472.40425808,0.00020234,2]
[378475278,1754879445851,-460.0,0.00020234,2]
[378475280,1754879445860,-460.0,0.00020234,2]
[378475282,1754879445869,-460.0,0.00020234,2]
[378475284,1754879445878,-460.0,0.00020234,2]
[378475286,1754879445890,-465.23755716,0.00020234,2]
[378475288,1754879445899,-487.31,0.00020234,2]
[378475290,1754879445908,-602.34029097,0.00020234,2]
[378475292,1754879445917,-460.0,0.00020234,2]
[378475294,1754879445927,-529.98993852,0.00020234,2]
[378475296,1754879445937,-460.0,0.00020234,2]
[378475298,1754879445947,-460.0,0.00020234,2]
[378475301,1754879445956,-460.0,0.00020234,2]
[378475302,1754879445965,-460.0,0.00020234,2]
[378475304,1754879445975,-464.39143786,0.00020234,2]
[378475306,1754879445985,-494.80611735,0.00020234,2]
[378475308,1754879445995,-460.0,0.00020234,2]
[378475310,1754879446005,-460.0,0.00020234,2]
[378475313,1754879446015,-472.34033673,0.00020234,2]